bitfinex/quotes_SOLUSD_20250805
["timestamp","ask_amount","ask_price","bid_price","bid_amount"]
[1754397756210,0.03,168.08,168.05,16.16482047]
[1754397756408,0.03,168.08,168.06,51.65002316]
[1754397756697,0.03,168.08,168.06,51.65019594]
[1754397757296,0.03,168.08,168.06,45.7]
[1754397757497,0.03,168.08,168.06,61.86457509]
[1754397757797,0.03,168.08,168.07,10.21432524]
[1754397758184,0.03,168.08,168.07,45.64]
[1754397758485,0.03,168.08,168.07,51.58990182]
[1754397758661,0.03,168.08,168.07,16.16422706]
[1754397758863,0.03,168.08,168.07,61.78422706]
[1754397759072,0.03,168.08,168.07,45.62]
[1754397759273,0.03,168.08,168.05,10.21432524]
[1754397759503,0.03,168.08,168.06,45.6]
[1754397759684,0.03,168.08,168.07,10.21432524]
[1754397759883,0.03,168.08,168.06,45.6]
[1754397760104,0.03,168.08,168.07,10.21432524]
[1754397760584,0.03,168.08,168.07,16.16422706]
[1754397761298,0.03,168.08,168.07,55.81432524]
[1754397761597,0.03,168.08,168.07,45.6]
[1754397761804,0.71,168.08,168.04,10.21432524]
[1754397761970,0.71,168.08,168.01,5.95202666]
[1754397761971,0.68,168.07,168.05,45.56]
[1754397762902,0.03,168.08,168.05,45.56]
[1754397763108,0.03,168.08,168.05,51.51058005]
[1754397763342,0.03,168.08,168.03,5.95097051]
[1754397763498,0.71,168.08,168.04,55.77432524]
[1754397763829,0.03,168.08,168.05,10.21432524]
[1754397764430,0.71,168.08,168.04,10.21432524]
[1754397764627,0.68,168.07,168.05,45.58]
[1754397764798,0.71,168.08,168.05,45.58]
[1754397765231,0.71,168.08,168.05,51.53043375]
[1754397765421,0.71,168.08,168.05,61.74475899]
[1754397765744,0.03,168.08,168.05,61.74475899]
[1754397765901,0.03,168.08,168.07,10.21432524]
[1754397766713,0.03,168.08,168.07,16.16422706]
[1754397767002,0.03,168.08,168.07,10.21432524]
[1754397767336,0.03,168.08,168.07,55.73432524]
[1754397768819,0.03,168.08,168.07,61.68422706]
[1754397769526,0.03,168.08,168.07,61.60422706]
[1754397770307,0.03,168.08,168.05,5.95025607]
[1754397770516,0.03,168.08,168.07,10.21432524]
[1754397770705,0.03,168.08,168.07,0.59499018]
[1754397770906,0.03,168.08,168.07,16.16422706]
[1754397773106,0.03,168.08,168.07,5.94990182]
[1754397773304,0.03,168.08,168.07,16.16422706]
[1754397774123,0.03,168.08,168.07,5.94990182]
[1754397774343,0.03,168.08,168.07,61.50422706]
[1754397774824,0.03,168.08,168.07,16.16422706]
[1754397775016,0.03,168.08,168.07,61.46422706]
[1754397775803,0.71,168.08,168.07,45.3]
[1754397776118,0.03,168.08,168.07,61.46422706]
[1754397776312,0.03,168.08,168.07,51.20990182]
[1754397776835,0.03,168.08,168.07,45.28]
[1754397777441,0.71,168.08,168.07,45.28]
[1754397777644,0.03,168.08,168.07,45.28]
[1754397778537,0.71,168.08,168.07,45.28]
[1754397778735,10.92432524,168.08,168.03,5.95131821]
[1754397778952,0.68,168.07,168.04,45.22]
[1754397779369,0.03,168.08,168.06,10.21432524]
[1754397779524,0.71,168.08,168.07,45.26]
[1754397779726,0.71,168.08,168.01,5.95202666]
[1754397779945,0.71,168.08,168.02,45.26]
[1754397780149,6.65968819,168.08,168.03,45.26]
[1754397780329,5.97968819,168.08,168.03,45.26]
[1754397780531,0.68,168.07,168.03,45.26]
[1754397780874,0.03,168.08,168.07,5.94990182]
[1754397781025,0.03,168.08,168.07,61.42422706]
[1754397781460,0.03,168.08,168.07,5.94990182]
[1754397781646,0.03,168.08,168.07,45.3]
[1754397781833,0.03,168.1,168.07,56.10931542]
[1754397782035,0.03,168.1,168.09,10.21432524]
[1754397782252,0.03,168.1,168.09,55.53432524]
[1754397782862,0.03,168.1,168.09,61.48351912]
[1754397783758,0.03,168.1,168.09,51.26919388]
[1754397783996,0.03,168.1,168.04,2.381732]
[1754397784171,10.24432524,168.1,168.05,10.21432524]
[1754397784463,10.21432524,168.09,168.06,45.32]
[1754397784636,0.68,168.08,168.06,45.32]
[1754397784835,10.24432524,168.1,168.07,5.94990182]
[1754397785082,0.68,168.09,168.07,5.94990182]
[1754397785265,0.68,168.08,168.06,51.27018675]
[1754397785660,0.68,168.08,168.06,45.32]
[1754397785974,0.68,168.08,168.06,51.27019008]
[1754397786285,10.24432524,168.1,168.06,51.27019008]
[1754397786579,10.24432524,168.1,168.06,61.48451532]
[1754397786580,0.71,168.1,168.06,61.48451532]
[1754397786751,0.03,168.1,168.08,10.21432524]
[1754397787080,0.03,168.1,168.09,45.28]
[1754397787247,0.03,168.1,168.09,51.22919388]
[1754397787574,0.03,168.1,168.09,61.44351912]
[1754397787773,0.03,168.1,168.09,45.28]
[1754397787988,0.71,168.1,168.09,45.28]
[1754397789354,0.71,168.1,168.09,51.22919388]
[1754397789567,0.71,168.1,168.09,45.28]
[1754397789766,0.03,168.1,168.09,51.22919388]
[1754397789970,0.03,168.1,168.09,45.28]
[1754397790155,0.71,168.1,168.09,45.28]
[1754397790552,0.03,168.1,168.09,51.22919388]
[1754397792372,0.71,168.1,168.09,45.28]
[1754397792775,0.03,168.1,168.09,51.22919388]
[1754397792964,0.03,168.1,168.09,61.44351912]
[1754397793163,0.03,168.1,168.09,51.22919388]
[1754397793367,0.03,168.1,168.09,45.28]
[1754397793574,0.03,168.1,168.09,51.22919388]
[1754397794269,0.03,168.1,168.09,45.28]
[1754397794463,0.03,168.1,168.09,51.22919388]
[1754397795492,0.71,168.1,168.09,45.28]
[1754397795862,0.03,168.1,168.09,51.22919388]
[1754397796368,0.03,168.1,168.09,61.44351912]
[1754397798366,0.03,168.1,168.09,5.94919388]
[1754397798561,0.03,168.1,168.09,51.00919388]
[1754397798785,0.03,168.1,168.09,61.22351912]
[1754397799183,0.03,168.1,168.09,51.00919388]
[1754397799483,0.03,168.1,168.09,45.06]
[1754397799684,0.03,168.1,168.07,10.27432524]
[1754397799987,0.03,168.1,168.08,45.06]
[1754397800189,0.71,168.1,168.08,45.06]
[1754397800579,0.03,168.1,168.08,55.27432524]
[1754397801178,0.03,168.1,168.09,5.94919388]
[1754397801707,0.03,168.1,168.08,51.00946984]
[1754397801906,0.71,168.1,168.08,61.22379508]
[1754397802579,0.03,168.1,168.08,51.00946984]
[1754397803100,0.71,168.1,168.08,51.00946984]
[1754397803766,0.71,168.1,168.09,45.06]
[1754397804371,10.92432524,168.1,168.07,0.06]
[1754397804603,10.21432524,168.08,168.07,0.06]
[1754397804774,10.21432524,168.08,168.07,45.12]
[1754397804963,0.68,168.08,168.07,45.12]
[1754397805309,0.03,168.1,168.07,45.12]
[1754397805608,10.89432524,168.09,168.07,45.12]
[1754397805772,5.97894384,168.1,168.05,0.06]
[1754397805773,10.89432524,168.08,168.05,0.06]
[1754397806094,10.21432524,168.06,168.05,0.06]
[1754397806279,10.21432524,168.06,168.05,45.12]
[1754397806478,10.89432524,168.06,168.05,44.4]
[1754397807296,0.68,168.06,168.05,44.4]
[1754397807592,5.94959662,168.08,168.05,44.4]
[1754397807593,10.21432524,168.08,168.05,44.4]
[1754397807778,0.68,168.08,168.05,44.4]
[1754397807979,0.68,168.07,168.05,44.4]
[1754397808507,0.68,168.06,168.05,44.4]
[1754397809082,10.21432524,168.08,168.05,44.4]
[1754397809398,0.65,168.07,168.05,44.4]
[1754397809594,10.21432524,168.08,168.05,50.35058495]
[1754397809788,10.21432524,168.08,168.05,44.4]
[1754397809988,36.21432524,168.09,168.05,44.4]
[1754397810181,0.03,168.1,168.05,61.22483079]
[1754397810384,25.35054081,168.1,168.05,61.22483079]
[1754397810693,10.86432524,168.09,168.05,44.4]
[1754397810895,10.21432524,168.07,168.05,44.4]
[1754397811108,10.86432524,168.07,168.05,44.4]
[1754397811289,10.86432524,168.07,168.0,0.66]
[1754397811290,10.86432524,168.06,168.0,26.0]
[1754397811516,10.21432524,168.02,167.98,5.95308965]
[1754397811805,10.21432524,168.03,167.99,45.06]
[1754397812109,0.65,168.04,167.99,45.06]
[1754397812306,10.21432524,168.03,167.99,45.06]
[1754397812610,10.86432524,168.04,167.99,55.27432524]
[1754397812810,0.65,168.04,167.99,55.27432524]
[1754397812993,10.21432524,168.05,168.0,10.87432524]
[1754397813306,10.86432524,168.05,168.01,5.95202666]
[1754397813482,10.86432524,168.05,168.02,45.06]
[1754397813678,10.86432524,168.04,168.02,45.06]
[1754397813896,0.65,168.04,168.02,45.06]
[1754397814083,10.21432524,168.05,168.02,45.06]
[1754397814502,10.86432524,168.04,168.02,45.06]
[1754397814712,0.65,168.03,168.02,45.06]
[1754397814909,0.65,168.05,168.02,45.06]
[1754397815089,10.21432524,168.04,168.02,45.06]
[1754397815410,10.86432524,168.04,168.02,45.06]
[1754397816182,10.86432524,168.03,167.97,42.86]
[1754397816380,10.21432524,167.99,167.97,42.86]
[1754397816581,10.86432524,167.99,167.98,45.06]
[1754397816788,0.65,168.02,167.98,45.06]
[1754397816997,10.21432524,168.01,167.98,45.06]
[1754397817199,10.86432524,168.01,167.98,45.06]
[1754397817404,0.65,168.01,167.98,45.06]
[1754397817708,0.03,168.05,168.0,10.21432524]
[1754397818007,0.03,168.05,168.04,10.21432524]
[1754397818212,0.03,168.05,168.04,55.27432524]
[1754397818584,10.89432524,168.05,167.98,21.49579343]
[1754397818783,10.21432524,168.01,167.97,48.81335018]
[1754397819030,10.21432524,167.99,167.98,45.06]
[1754397819191,10.86432524,167.99,167.98,45.06]
[1754397819389,5.95308965,167.98,167.96,0.06]
[1754397819611,10.21432524,167.97,167.96,0.06]
[1754397819985,10.86432524,167.97,167.96,0.06]
[1754397820709,26.0,168.0,167.96,0.06]
[1754397820710,0.65,167.99,167.96,0.06]
[1754397820896,10.21432524,167.97,167.96,0.06]
[1754397821223,10.21432524,168.0,167.96,0.06]
[1754397821387,10.21432524,168.01,167.97,5.95344406]
[1754397821581,10.21432524,168.01,167.98,45.06]
[1754397822015,10.86432524,168.0,167.98,45.06]
[1754397822191,10.21432524,168.0,167.98,45.06]
[1754397822393,10.86432524,167.99,167.96,0.06]
[1754397822600,10.21432524,167.97,167.96,0.06]
[1754397822904,10.21432524,167.97,167.96,45.12]
[1754397823087,10.86432524,167.97,167.96,45.12]
[1754397823291,10.21432524,167.97,167.96,45.12]
[1754397823709,10.21432524,167.98,167.96,45.12]
[1754397824088,0.65,168.04,167.97,0.66]
[1754397824312,0.65,168.04,167.98,10.21432524]
[1754397824518,10.21432524,168.03,167.99,45.06]
[1754397824725,10.86432524,168.02,167.99,45.06]
[1754397825293,10.21432524,168.0,167.99,45.06]
[1754397825634,10.86432524,168.01,167.99,45.06]
[1754397825939,26.03,168.05,167.99,51.0127122]
[1754397826110,0.03,168.05,168.03,10.21432524]
[1754397826426,0.03,168.05,168.04,45.06]
[1754397827593,0.03,168.05,168.04,51.01096405]
[1754397829051,0.03,168.05,168.04,45.06]
[1754397829330,10.89432524,168.05,168.04,45.06]
[1754397830007,10.89432524,168.05,168.03,45.06]
[1754397830323,10.86432524,168.04,168.03,45.06]
[1754397831116,0.65,168.04,168.03,45.06]
[1754397831327,10.86432524,168.04,168.03,45.06]
[1754397832798,0.65,168.04,168.03,45.06]
[1754397833005,10.24432524,168.05,168.03,45.06]
[1754397833206,10.86432524,168.04,168.03,45.06]
[1754397833510,10.21432524,168.04,168.03,45.06]
[1754397833933,0.03,168.05,168.03,45.06]
[1754397834146,10.24432524,168.05,168.03,45.06]
[1754397835331,36.86432524,168.04,168.03,45.06]
[1754397835537,15.10621557,168.03,167.98,45.04]
[1754397835744,10.21432524,168.0,167.98,45.04]
[1754397836114,0.65,168.02,167.98,45.04]
[1754397836330,10.21432524,167.99,167.98,45.04]
[1754397836626,10.21432524,168.0,167.98,45.04]
[1754397836931,10.86432524,167.99,167.98,45.04]
[1754397837122,0.65,167.99,167.98,45.04]
[1754397837322,10.86432524,167.99,167.98,45.04]
[1754397837526,0.65,168.01,167.98,45.04]
[1754397837726,10.21432524,167.99,167.98,45.04]
[1754397837908,10.86432524,167.99,167.98,45.04]
[1754397838845,10.21432524,167.99,167.98,45.04]
[1754397839138,10.91432524,167.99,167.98,45.04]
[1754397839518,0.7,167.99,167.98,45.04]
[1754397839713,10.91432524,167.99,167.98,45.04]
[1754397840642,15.80621557,168.03,167.98,45.04]
[1754397840859,0.7,168.02,167.98,45.04]
[1754397841007,21.05764477,168.03,167.98,50.99301108]
[1754397841209,10.21432524,168.0,167.98,50.99301108]
[1754397841508,10.21432524,168.0,167.98,50.99297345]
[1754397841708,10.21432524,168.0,167.98,45.04]
[1754397842215,10.21432524,168.01,167.98,50.99301726]
[1754397842412,10.21432524,168.01,167.98,51.68301726]
[1754397842739,148.2,168.04,168.0,10.21432524]
[1754397842935,0.03,168.07,168.03,10.21432524]
[1754397843234,0.03,168.07,168.04,55.94432524]
[1754397843622,0.03,168.07,168.04,51.68096405]
[1754397843809,0.03,168.07,168.04,50.99096405]
[1754397844006,0.03,168.07,168.04,61.20528929]
[1754397844232,0.03,168.07,168.04,45.04]
[1754397844439,0.14216157,168.03,167.96,0.06]
[1754397844636,0.14216157,168.03,167.97,45.04]
[1754397844637,26.0,168.01,167.97,45.04]
[1754397844941,10.21432524,167.98,167.97,45.04]
[1754397845240,10.21432524,167.99,167.97,45.04]
[1754397845612,26.0,168.01,167.97,45.04]
[1754397845613,10.21432524,167.98,167.97,45.04]
[1754397845834,10.21432524,167.98,167.97,45.02]
[1754397846036,10.91432524,167.98,167.97,45.02]
[1754397846841,10.91432524,167.98,167.96,0.06]
[1754397847018,10.91432524,167.97,167.96,0.06]
[1754397848030,10.21432524,167.97,167.96,0.06]
[1754397848214,16.1677693,167.97,167.96,0.06]
[1754397848427,16.8677693,167.97,167.96,0.06]
[1754397848631,31.97398487,167.97,167.96,0.06]
[1754397849519,32.11614644,167.97,167.96,0.06]
[1754397851327,31.27398487,167.97,167.96,0.06]
[1754397851534,31.97398487,167.97,167.96,0.06]
[1754397851936,32.11614644,167.97,167.96,0.06]
[1754397853155,21.9018212,167.97,167.96,0.06]
[1754397853447,32.11614644,167.97,167.96,0.06]
[1754397853648,41.24837714,167.91,167.9,0.2]
[1754397853948,26.0,167.87,167.82,0.69]
[1754397854143,26.0,167.87,167.82,6.64851745]
[1754397854445,36.21432524,167.87,167.82,6.64851745]
[1754397855141,10.21432524,167.89,167.86,0.75]
[1754397855449,10.21432524,167.87,167.86,0.06]
[1754397855839,10.91432524,167.87,167.86,0.06]
[1754397856042,36.21432524,167.88,167.86,0.06]
[1754397856359,5.95627219,167.9,167.86,0.06]
[1754397856360,36.21432524,167.87,167.86,0.06]
[1754397856751,36.91432524,167.87,167.86,0.06]
[1754397856932,10.91432524,167.87,167.86,0.06]
[1754397857127,10.21432524,167.87,167.86,0.06]
[1754397857345,26.0,167.9,167.86,0.75]
[1754397857559,36.21432524,167.9,167.86,0.75]
[1754397857760,36.21432524,167.9,167.87,0.69]
[1754397857940,10.21432524,167.89,167.86,0.06]
[1754397858457,10.21432524,167.87,167.86,0.06]
[1754397858634,36.21432524,167.87,167.86,0.06]
[1754397858828,36.91432524,167.87,167.86,0.06]
[1754397859525,0.7,167.9,167.86,0.06]
[1754397859746,10.21432524,167.88,167.86,0.06]
[1754397859958,32.65603572,167.9,167.86,0.06]
[1754397860255,10.21432524,167.88,167.86,0.06]
[1754397860631,10.21432524,167.87,167.86,0.06]
[1754397860831,10.91432524,167.87,167.86,0.06]
[1754397861661,36.91432524,167.87,167.86,0.06]
[1754397862358,0.14216157,167.85,167.84,0.06]
[1754397862537,52.16270238,167.85,167.84,0.06]
[1754397862732,26.16270238,167.85,167.84,0.06]
[1754397863561,10.21432524,167.77,167.76,45.02]
[1754397863859,10.21432524,167.77,167.71,46.19944543]
[1754397864087,10.21432524,167.73,167.71,40.23701044]
[1754397864262,10.21432524,167.72,167.71,39.54701044]
[1754397864433,10.91432524,167.72,167.64,0.69]
[1754397864630,10.21432524,167.68,167.65,5.96480763]
[1754397864861,10.21432524,167.68,167.65,6.65480763]
[1754397865070,6.66231814,167.72,167.62,0.69]
[1754397865071,10.21432524,167.66,167.62,0.69]
[1754397865262,10.21432524,167.64,167.62,0.69]
[1754397865436,26.7,167.68,167.6,50.98658711]
[1754397865637,10.21432524,167.64,167.6,51.67658711]
[1754397865841,10.21432524,167.65,167.61,0.69]
[1754397866168,26.0,167.68,167.62,0.69]
[1754397866366,10.21432524,167.65,167.62,6.65556316]
[1754397866663,10.21432524,167.66,167.62,6.65556316]
[1754397866839,10.21432524,167.65,167.61,5.96615708]
[1754397867246,10.21432524,167.63,167.6,45.02]
[1754397867657,10.21432524,167.65,167.61,0.69]
[1754397868156,10.21432524,167.65,167.62,0.69]
[1754397868359,10.21432524,167.65,167.6,61.8908238]
[1754397868564,26.0,167.67,167.61,10.90432524]
[1754397868737,26.0,167.67,167.62,10.21432524]
[1754397868942,36.21432524,167.67,167.63,0.69]
[1754397869475,26.0,167.67,167.63,0.69]
[1754397869669,26.0,167.69,167.64,0.69]
[1754397869880,36.21432524,167.69,167.63,10.21432524]
[1754397870040,45.04,167.72,167.66,10.21432524]
[1754397870241,10.21432524,167.72,167.67,10.21432524]
[1754397870480,10.21432524,167.69,167.66,45.04]
[1754397870764,0.72,167.76,167.68,10.21432524]
[1754397870968,10.21432524,167.75,167.69,10.21432524]
[1754397871166,45.76,167.78,167.71,10.21432524]
[1754397871368,10.21432524,167.74,167.66,65.91553848]
[1754397871606,10.21432524,167.73,167.67,0.69]
[1754397871765,10.21432524,167.71,167.67,0.69]
[1754397871977,10.21432524,167.71,167.66,61.21873406]
[1754397872145,26.72,167.74,167.67,10.21432524]
[1754397872477,26.72,167.74,167.66,51.00440882]
[1754397872478,36.93432524,167.74,167.69,16.17771005]
[1754397872651,10.21432524,167.76,167.71,10.21432524]
[1754397872851,10.93432524,167.77,167.72,10.21432524]
[1754397873173,0.72,167.8,167.75,10.21432524]
[1754397873354,10.93432524,167.8,167.75,10.21432524]
[1754397873674,10.21432524,167.78,167.73,10.21432524]
[1754397874113,10.93432524,167.78,167.71,45.04]
[1754397874276,10.93432524,167.78,167.73,10.21432524]
[1754397874598,0.72,167.78,167.73,16.17596015]
[1754397875086,10.21432524,167.79,167.73,6.65163491]
[1754397875467,10.21432524,167.79,167.74,10.21432524]
[1754397875775,10.93432524,167.79,167.74,10.21432524]
[1754397875963,26.0,167.8,167.74,10.90432524]
[1754397876288,0.72,167.8,167.73,5.96163491]
[1754397876589,10.21432524,167.78,167.73,61.21628576]
[1754397876943,10.21432524,167.78,167.73,61.90628576]
[1754397877148,10.93432524,167.78,167.73,61.90628576]
[1754397877448,10.21432524,167.76,167.73,45.04]
[1754397877645,10.93432524,167.76,167.73,45.04]
[1754397878071,10.21432524,167.75,167.73,45.04]
[1754397878274,10.21432524,167.74,167.73,45.04]
[1754397878448,10.93432524,167.74,167.69,45.04]
[1754397878765,10.21432524,167.72,167.69,45.04]
[1754397879175,10.21432524,167.71,167.69,45.04]
[1754397879578,10.21432524,167.7,167.69,45.04]
[1754397879766,0.72,167.74,167.69,45.04]
[1754397879961,10.21432524,167.71,167.69,45.04]
[1754397880661,10.21432524,167.73,167.69,45.04]
[1754397880976,36.21432524,167.73,167.69,45.04]
[1754397881178,10.21432524,167.72,167.69,45.04]
[1754397881480,10.21432524,167.75,167.7,10.90432524]
[1754397881684,26.0,167.76,167.72,10.21432524]
[1754397882352,10.21432524,167.8,167.75,10.21432524]
[1754397882552,45.02,167.85,167.77,5.96054121]
[1754397882753,0.72,167.84,167.77,16.17486645]
[1754397882952,36.21432524,167.83,167.77,61.19486645]
[1754397883148,0.72,167.84,167.78,10.21432524]
[1754397883379,0.72,167.84,167.8,10.21432524]
[1754397883580,0.72,167.84,167.79,10.21432524]
[1754397883781,36.21432524,167.85,167.79,10.21432524]
[1754397884164,36.21432524,167.85,167.77,51.67054121]
[1754397884165,0.75,167.86,167.77,66.57189425]
[1754397884364,10.21432524,167.85,167.8,10.21432524]
[1754397884583,0.72,167.84,167.8,10.21432524]
[1754397884789,16.20194258,167.86,167.81,10.21432524]
[1754397884959,16.92194258,167.86,167.81,10.21432524]
[1754397885159,10.96432524,167.86,167.81,10.21432524]
[1754397885378,0.75,167.86,167.81,10.21432524]
[1754397885769,16.92174544,167.86,167.79,0.69]
[1754397885979,16.92174544,167.86,167.81,10.21432524]
[1754397886171,0.72,167.85,167.81,10.21432524]
[1754397886365,16.20174544,167.86,167.81,10.21432524]
[1754397886692,0.75,167.86,167.81,16.17324096]
[1754397886879,16.92175339,167.86,167.8,5.95937274]
[1754397887355,16.92175339,167.86,167.81,10.21432524]
[1754397887776,0.75,167.86,167.81,10.21432524]
[1754397887961,26.0,167.85,167.82,10.90432524]
[1754397888161,26.0,167.85,167.82,10.21432524]
[1754397888692,0.03,167.86,167.83,10.90432524]
[1754397888877,0.03,167.86,167.84,10.21432524]
[1754397889077,0.03,167.86,167.83,10.21432524]
[1754397889391,10.93432524,167.85,167.8,45.0]
[1754397889572,10.93432524,167.84,167.8,45.0]
[1754397889776,0.72,167.84,167.8,45.0]
[1754397889972,0.72,167.84,167.8,55.21432524]
[1754397890488,0.72,167.84,167.8,45.0]
[1754397891187,16.89254432,167.84,167.8,45.0]
[1754397891364,16.89254432,167.84,167.74,0.69]
[1754397891365,36.21432524,167.81,167.74,0.69]
[1754397891687,26.0,167.81,167.77,10.21432524]
[1754397891874,10.21432524,167.84,167.79,10.21432524]
[1754397892080,36.21432524,167.84,167.79,10.90432524]
[1754397892477,10.21432524,167.82,167.76,0.69]
[1754397892674,10.21432524,167.82,167.78,5.96018595]
[1754397892892,10.93432524,167.83,167.78,16.17451119]
[1754397893488,16.89281431,167.83,167.78,16.17451119]
[1754397893690,16.89281431,167.83,167.77,5.96046419]
[1754397893859,10.93432524,167.82,167.77,16.17478943]
[1754397894062,10.93432524,167.82,167.75,45.0]
[1754397894277,0.72,167.82,167.76,10.21432524]
[1754397894483,10.21432524,167.81,167.76,10.21432524]
[1754397894808,10.21432524,167.77,167.7,10.21432524]
[1754397895007,10.21432524,167.74,167.7,44.98]
[1754397895305,0.72,167.76,167.7,44.98]
[1754397895505,10.21432524,167.75,167.7,44.98]
[1754397896008,10.21432524,167.76,167.71,10.90432524]
[1754397896399,10.21432524,167.74,167.7,44.98]
[1754397896581,10.21432524,167.73,167.7,44.98]
[1754397896777,10.93432524,167.73,167.7,44.98]
[1754397897010,10.21432524,167.72,167.7,44.98]
[1754397897395,10.93432524,167.73,167.7,44.98]
[1754397897916,10.21432524,167.72,167.7,44.98]
[1754397898211,10.93432524,167.72,167.7,44.98]
[1754397898395,10.21432524,167.72,167.7,44.98]
[1754397899592,5.96202626,167.73,167.7,44.98]
[1754397899788,10.21432524,167.72,167.7,44.98]
[1754397900392,10.21432524,167.73,167.7,44.98]
[1754397900889,10.21432524,167.71,167.7,44.98]
[1754397901285,10.21432524,167.71,167.67,44.98]
[1754397901481,6.64215757,167.73,167.68,0.71]
[1754397901482,10.21432524,167.73,167.68,0.71]
[1754397901803,10.21432524,167.69,167.67,44.98]
[1754397902206,0.68,167.72,167.67,44.98]
[1754397902404,31.96169226,167.74,167.68,0.71]
[1754397902627,10.21432524,167.71,167.67,44.98]
[1754397902793,10.21432524,167.69,167.67,44.98]
[1754397902994,0.68,167.73,167.67,45.69]
[1754397903306,10.21432524,167.73,167.69,5.96338481]
[1754397903511,15.10621557,167.78,167.69,5.96338481]
[1754397903708,10.21432524,167.8,167.75,10.21432524]
[1754397903889,10.21432524,167.82,167.76,44.98]
[1754397904094,6.63805529,167.84,167.76,44.98]
[1754397904095,10.21432524,167.78,167.76,44.98]
[1754397904603,15.10621557,167.83,167.69,5.96338481]
[1754397904793,10.21432524,167.74,167.7,55.19432524]
[1754397904992,10.21432524,167.74,167.7,44.98]
[1754397905319,10.21432524,167.71,167.7,44.98]
[1754397905524,10.21432524,167.71,167.67,44.98]
[1754397905702,0.68,167.73,167.67,55.90432524]
[1754397905904,26.0,167.71,167.68,10.21432524]
[1754397906214,10.21432524,167.73,167.69,0.71]
[1754397906601,10.21432524,167.72,167.67,55.19432524]
[1754397906794,10.21432524,167.72,167.65,0.77]
[1754397906795,10.21432524,167.68,167.65,0.06]
[1754397906995,10.21432524,167.67,167.65,0.06]
[1754397907195,26.0,167.72,167.65,0.06]
[1754397907196,10.21432524,167.66,167.65,0.06]
[1754397907418,16.1787771,167.66,167.65,0.06]
[1754397907798,16.8587771,167.66,167.65,0.06]
[1754397908002,0.68,167.66,167.65,0.06]
[1754397908192,16.8587771,167.66,167.65,0.06]
[1754397908611,0.68,167.68,167.65,0.06]
[1754397909131,10.21432524,167.66,167.65,0.06]
[1754397909521,16.1787771,167.66,167.65,0.06]
[1754397909723,0.68,167.66,167.65,0.06]
[1754397909930,26.0,167.69,167.65,0.06]
[1754397910227,10.21432524,167.69,167.65,0.77]
[1754397910427,31.96277288,167.71,167.65,0.77]
[1754397910629,10.21432524,167.67,167.65,0.06]
[1754397910835,10.21432524,167.66,167.65,0.06]
[1754397911050,10.89432524,167.66,167.65,0.06]
[1754397911540,16.8587771,167.66,167.65,0.06]
[1754397912337,26.0,167.66,167.65,0.06]
[1754397912531,10.21432524,167.67,167.65,0.06]
[1754397913118,26.0,167.7,167.65,0.06]
[1754397913322,16.17773186,167.69,167.65,0.06]
[1754397913516,10.21432524,167.68,167.65,0.06]
[1754397913720,10.21432524,167.69,167.65,0.06]
[1754397914029,10.21432524,167.7,167.65,10.27432524]
[1754397914332,10.21432524,167.66,167.65,0.06]
[1754397914921,0.68,167.66,167.65,0.06]
[1754397915122,10.89432524,167.66,167.65,0.06]
[1754397915333,16.8587771,167.66,167.65,0.06]
[1754397915638,6.64445186,167.66,167.65,0.06]
[1754397915831,16.8587771,167.66,167.65,0.06]
[1754397916015,6.64445186,167.66,167.65,0.06]